bitfinex-derivatives/quotes_BNBF0:USTF0_20250424
["timestamp","ask_amount","ask_price","bid_price","bid_amount"]
[1745537918667,1.26885938,603.73,601.82,0.30489175]
[1745537918870,1.26885938,603.73,601.83,0.30489175]
[1745537919167,1.26885938,603.73,601.84,0.30489175]
[1745537919371,1.26885938,603.73,601.85,0.30489175]
[1745537919572,1.26885938,603.73,601.86,0.30489175]
[1745537919771,1.26885938,603.73,601.82,0.30489175]
[1745537919971,1.26885938,603.73,601.83,0.30489175]
[1745537920173,1.26885938,603.73,601.82,0.30489175]
[1745537920372,1.26885938,603.73,601.83,0.30489175]
[1745537920569,1.26885938,603.73,601.83,1.207]
[1745537920768,1.26885938,603.73,601.84,0.30489175]
[1745537922075,1.55768602,603.72,601.84,0.30489175]
[1745537924977,1.26885938,603.72,601.84,0.30489175]
[1745537926077,0.28883263,603.71,601.84,0.30489175]
[1745537927877,1.26885938,603.72,601.84,0.30489175]
[1745537928477,1.26885938,603.72,601.83,1.207]
[1745537928674,1.26885938,603.51,601.84,0.3049297]
[1745537929177,0.28885781,603.5,601.84,0.3049297]
[1745537930879,1.26885938,603.51,601.84,0.3049297]
[1745537931079,1.26885938,603.46,601.84,0.3049297]
[1745537932179,0.2888638,603.45,601.84,0.3049297]
[1745537933282,0.2888638,603.45,601.83,1.207]
[1745537933882,1.26885938,603.46,601.83,1.207]
[1745537934183,1.26885938,603.44,601.83,1.207]
[1745537935083,0.28888299,603.43,601.83,1.207]
[1745537936288,0.28888299,603.43,601.84,0.975]
[1745537936988,1.26885938,603.44,601.84,0.975]
[1745537937390,1.26885938,603.59,601.84,0.975]
[1745537937989,0.28888059,603.58,601.84,0.975]
[1745537939894,1.26885938,603.59,601.84,0.975]
[1745537940095,1.26885938,603.59,601.81,1.347]
[1745537940393,0.28888059,603.57,601.81,1.347]
[1745537942991,1.26885938,603.7,601.81,1.347]
[1745537944094,0.288871,603.69,601.38,1.06051272]
[1745537944295,0.288871,603.69,601.52,0.288871]
[1745537944497,0.288871,603.69,601.53,0.30499122]
[1745537944697,0.288871,603.69,601.39,0.30499122]
[1745537944896,0.288871,603.69,601.4,0.30499122]
[1745537945094,0.288871,603.69,601.39,0.30499122]
[1745537945299,0.288871,603.69,601.4,0.30499122]
[1745537945501,0.288871,603.69,601.38,1.06051272]
[1745537945702,0.288871,603.69,601.39,0.30499128]
[1745537945900,1.26885938,603.72,601.41,0.28892256]
[1745537946194,1.26885938,603.72,601.42,0.30499128]
[1745537947200,0.28892136,603.71,601.42,0.30499128]
[1745537948700,0.28892136,603.71,601.41,0.28892256]
[1745537948900,1.26885938,603.72,601.42,0.30500184]
[1745537949101,1.26885938,603.72,601.38,0.30500184]
[1745537949301,1.26885938,603.8,601.39,0.30500184]
[1745537949500,1.26885938,603.8,601.32,0.30500184]
[1745537949696,1.26885938,603.8,601.33,0.30500184]
[1745537949901,1.26885938,603.8,601.34,0.30500184]
[1745537950097,0.28892376,603.79,601.32,0.30500184]
[1745537950402,0.28892376,603.79,601.34,0.28892376]
[1745537950600,0.28892376,603.79,601.35,0.30500546]
[1745537951999,1.26885938,603.8,601.31,1.06051272]
[1745537952201,1.26885938,603.8,601.32,0.30500162]
[1745537952403,1.26885938,603.71,601.34,1.06051272]
[1745537952598,1.26885938,603.71,601.35,0.30500162]
[1745537953203,0.28893575,603.7,601.35,0.30500162]
[1745537953503,0.28893575,603.7,601.34,1.34944847]
[1745537953701,0.28893575,603.7,601.35,0.3049997]
[1745537954801,1.55779513,603.7,601.35,1.36551242]
[1745537955004,1.26885938,603.7,601.36,0.3049997]
[1745537956100,0.28893575,603.69,601.36,0.3049997]
[1745537957708,1.26885938,603.6,601.41,1.06051272]
[1745537957903,1.26885938,603.6,601.42,0.3049997]
[1745537958304,1.26885938,603.6,601.41,1.06051272]
[1745537958305,0.28894055,603.59,601.41,1.06051272]
[1745537958506,0.28894055,603.59,601.42,0.3050102]
[1745537959909,0.28894055,603.59,601.37,0.28894055]
[1745537960109,0.28894055,603.59,601.38,0.30501467]
[1745537960913,1.26885938,603.75,601.38,0.30501467]
[1745537961107,1.26885938,603.75,601.39,0.30501467]
[1745537961307,1.26885938,603.75,601.4,0.30501467]
[1745537961513,1.26885938,603.75,601.4,1.574]
[1745537961710,1.26885938,603.75,601.41,0.30501467]
[1745537962107,0.28892376,603.74,601.41,0.30501467]
[1745537962314,1.55778314,603.74,601.41,0.30501467]
[1745537963908,1.26885938,603.74,601.41,0.30501467]
[1745537964613,1.26885938,603.74,601.41,1.164]
[1745537965212,0.28895974,603.73,601.41,1.164]
[1745537965514,1.26885938,603.69,601.41,1.164]
[1745537967613,1.26885938,603.69,601.42,0.30511859]
[1745537967814,1.26885938,603.69,601.43,0.30511678]
[1745537968010,1.26885938,603.69,601.44,0.30511678]
[1745537968215,0.28898014,603.68,601.45,0.30511678]
[1745537968413,0.28898014,603.68,601.46,0.30511678]
[1745537968614,0.28898014,603.68,601.42,0.30511678]
[1745537968810,1.26885938,603.61,601.43,0.30511678]
[1745537969015,1.26885938,603.61,601.42,0.30511678]
[1745537969217,1.26885938,603.61,601.43,0.30511678]
[1745537969419,1.26885938,603.61,601.42,0.30511678]
[1745537969713,1.26885938,603.61,601.43,0.30511678]
[1745537969913,1.26885938,603.61,601.42,0.30511678]
[1745537970117,1.26885938,603.61,601.41,1.164]
[1745537970118,1.26885938,603.61,601.43,0.30511678]
[1745537970315,1.26885938,603.61,601.42,0.30511678]
[1745537970613,1.26885938,603.61,601.43,0.30511678]
[1745537970917,1.26885938,603.61,601.44,0.30511678]
[1745537971113,0.28898974,603.6,601.42,0.30511678]
[1745537971318,0.28898974,603.6,601.43,0.30511678]
[1745537971617,0.28898974,603.6,601.44,0.30511678]
[1745537971811,0.28898974,603.6,601.45,0.30511678]
[1745537972012,0.28898974,603.6,601.42,0.30511678]
[1745537972216,1.26885938,603.39,601.43,0.30511678]
[1745537972413,1.26885938,603.39,601.42,0.30511678]
[1745537973723,1.26885938,603.39,601.41,1.164]
[1745537973923,1.26885938,603.39,601.42,0.3051184]
[1745537974118,0.28901134,603.38,601.42,0.3051184]
[1745537974524,0.28901134,603.38,601.42,1.3541184]
[1745537974718,0.28901134,603.38,601.43,0.3051184]
[1745537975925,1.26885938,603.48,601.43,0.3051184]
[1745537976224,0.28899934,603.37,601.43,0.3051184]
[1745537976418,1.26885938,603.48,601.43,0.3051184]
[1745537977225,0.28899454,603.47,601.43,0.3051184]
[1745537979021,1.26885938,603.51,601.43,0.3051184]
[1745537979625,1.26885938,603.52,601.43,0.3051184]
[1745537980126,0.28898254,603.51,601.43,0.3051184]
[1745537980426,0.28898254,603.51,601.44,0.30511359]
[1745537980626,0.28898254,603.51,601.45,0.30511359]
[1745537980827,0.28898254,603.51,601.43,0.30511359]
[1745537981122,0.28898254,603.51,601.44,0.30511359]
[1745537981322,0.28898254,603.51,601.45,0.30511359]
[1745537981625,0.28898254,603.51,601.46,0.30511359]
[1745537981826,1.26885938,603.52,601.43,0.30511359]
[1745537982026,1.26885938,603.52,601.42,1.049]
[1745537982027,1.26885938,603.39,601.44,0.30511332]
[1745537982223,1.26885938,603.39,601.45,0.30511332]
[1745537982427,1.26885938,603.39,601.46,0.30511332]
[1745537982623,1.26885938,603.39,601.43,0.30511332]
[1745537982921,1.26885938,603.39,601.44,0.30511332]
[1745537983126,1.26885938,603.39,601.43,0.30511332]
[1745537983326,1.26885938,603.39,601.44,0.30511332]
[1745537983528,1.26885938,603.39,601.43,0.30511332]
[1745537984128,1.26885938,603.34,601.43,0.30511332]
[1745537985527,1.26885938,603.34,601.43,1.53911332]
[1745537985725,1.26885938,603.34,601.44,0.30511332]
[1745537986126,0.28900294,603.33,601.44,0.30511332]
[1745537986530,1.26885938,603.29,601.44,0.30511332]
[1745537986730,1.26885938,603.29,601.43,1.234]
[1745537987028,1.26885938,603.29,601.44,0.30511323]
[1745537988429,2.16082721,603.86,601.44,0.30511323]
[1745537988430,1.26885938,603.43,601.44,0.30511323]
[1745537989132,0.28899214,603.42,601.44,0.30511323]
[1745537989830,0.28899214,603.42,601.43,2.45]
[1745537990031,0.28899214,603.42,601.44,0.30510633]
[1745537990931,1.26885938,603.43,601.44,0.30510633]
[1745537991130,1.26885938,603.39,601.44,0.30510633]
[1745537991432,1.26885938,603.39,601.45,1.539]
[1745537991631,1.26885938,603.39,601.46,0.30510633]
[1745537992128,0.28899454,603.38,601.46,0.30510633]
[1745537993034,0.28899454,603.38,601.45,1.539]
[1745537993229,0.28899454,603.38,601.46,0.30510807]
[1745537993535,0.28899454,603.38,601.45,1.539]
[1745537993735,1.55785392,603.38,601.45,1.539]
[1745537993931,1.26885938,603.38,601.45,1.539]
[1745537995033,0.28897654,603.37,601.45,1.539]
[1745537995234,0.28897654,603.37,601.46,1.519]
[1745537996934,1.26885938,603.38,601.46,1.519]
[1745537997135,1.26885938,603.88,601.46,1.519]
[1745537998239,0.28890817,603.87,601.46,1.519]
[1745537999841,1.26885938,603.84,601.46,1.519]
[1745538001241,0.28891296,603.83,601.46,1.519]
[1745538002941,1.26885938,603.84,601.46,1.519]
[1745538003440,1.26885938,603.84,601.47,0.30505792]
[1745538003836,1.26885938,603.84,601.48,0.30505875]
[1745538004035,1.26885938,603.84,601.49,0.30505875]
[1745538004239,1.26885938,603.8,601.5,0.30505875]
[1745538004539,1.26885938,603.8,601.51,0.30505875]
[1745538004739,1.26885938,603.8,601.52,0.30505875]
[1745538005039,1.26885938,603.8,601.53,0.30505875]
[1745538005342,1.26885938,603.8,601.46,1.519]
[1745538005541,1.26885938,603.8,601.47,0.30506006]
[1745538006140,2.16082721,603.43,601.47,0.30506006]
[1745538006335,1.26885938,603.3,601.47,0.30506006]
[1745538006940,1.26885938,603.3,601.46,1.519]
[1745538007137,0.28897774,603.29,601.47,0.30506006]
[1745538008341,1.26885938,603.25,601.47,0.30506006]
[1745538008534,1.26885938,603.25,601.48,0.30505764]
[1745538008737,1.26885938,603.25,601.47,0.30505764]
[1745538008940,1.26885938,603.25,601.48,0.30505764]
[1745538009138,1.26885938,603.25,601.47,0.30505764]
[1745538009943,1.26885938,603.14,601.49,1.06051272]
[1745538010143,1.26885938,603.14,601.5,0.30506068]
[1745538011944,1.26885938,603.14,601.49,1.06051272]
[1745538012240,1.26885938,603.24,601.44,1.06051272]
[1745538012545,1.26885938,603.24,601.45,0.30509083]
[1745538013245,0.28898734,603.23,601.45,0.30509083]
[1745538014948,1.26885938,603.24,601.45,0.30509083]
[1745538015742,2.16082721,603.82,601.45,0.30509083]
[1745538015743,1.26885938,603.32,601.45,0.30509083]
[1745538015948,1.26885938,603.32,601.44,0.30509083]
[1745538016249,0.28897894,603.31,601.45,0.30509083]
[1745538017949,1.26885938,603.32,601.45,0.30509083]
[1745538018248,1.26885938,603.32,601.46,0.30509083]
[1745538018550,1.26885938,603.36,601.49,1.06051272]
[1745538018742,1.26885938,603.36,601.5,0.30509083]
[1745538019249,0.28895255,603.35,601.51,0.30502364]
[1745538019443,0.28895255,603.35,601.52,0.30502364]
[1745538019749,0.28895255,603.35,601.53,0.30502364]
[1745538020043,0.28895255,603.35,601.54,0.30502364]
[1745538020248,0.28895255,603.35,601.55,0.30502364]
[1745538020448,0.28895255,603.35,601.5,0.30502364]
[1745538020647,0.28895255,603.35,601.51,0.30502364]
[1745538020848,0.28895255,603.35,601.5,0.30502364]
[1745538021048,1.26885938,603.36,601.5,0.30502364]
[1745538021451,1.26885938,603.37,601.5,1.36553636]
[1745538021651,1.26885938,603.37,601.51,0.30502364]
[1745538022152,0.28896454,603.36,601.51,0.30502364]
[1745538023752,0.28896454,603.36,601.46,0.30502364]
[1745538026456,1.55782392,603.36,601.46,0.30502364]
[1745538026954,1.26885938,603.36,601.46,0.30502364]
[1745538027153,1.26885938,603.36,601.47,0.30502364]
[1745538027355,0.28898614,603.35,601.44,0.30502364]
[1745538027553,0.28898614,603.35,601.45,0.30502364]
[1745538027749,0.28898614,603.35,601.46,0.30502364]
[1745538027952,0.28898614,603.35,601.44,0.30502364]
[1745538028150,0.28898614,603.35,601.45,0.30502364]
[1745538028349,0.28898614,603.35,601.44,0.30502364]
[1745538029255,1.55784552,603.35,601.44,0.30502364]
[1745538029956,1.26885938,603.35,601.44,0.30502364]
[1745538030254,1.26885938,603.35,601.43,1.234]
[1745538030456,1.26885938,603.35,601.44,0.30507374]
[1745538031154,0.28898974,603.34,601.44,0.30507374]
[1745538032951,1.26885938,603.11,601.5,1.06051272]
[1745538033156,1.26885938,603.11,601.51,0.30507374]
[1745538034258,0.28901014,603.1,601.51,0.30507374]
[1745538035954,1.26885938,603.11,601.51,0.30507374]
[1745538036161,1.26885938,603.18,601.51,0.30507374]
[1745538036359,1.26885938,603.18,601.49,0.30507374]
[1745538036661,1.26885938,603.18,601.5,0.30507374]
[1745538036859,1.26885938,603.18,601.49,0.30507374]
[1745538037059,1.26885938,603.18,601.5,0.30507374]
[1745538037260,0.28900414,603.17,601.51,0.30507374]
[1745538037561,0.28900414,603.17,601.52,0.30507374]
[1745538037763,0.28900414,603.17,601.49,0.30507374]
[1745538038163,0.28900414,603.17,601.48,1.06051272]
[1745538038362,0.28900414,603.17,601.49,0.30507205]
[1745538038762,0.28900414,603.17,601.44,0.30507205]
[1745538039061,1.26885938,603.36,601.45,0.30507205]
[1745538039259,1.26885938,603.36,601.44,0.30507205]
[1745538039457,1.26885938,603.36,601.43,1.234]
[1745538039458,1.26885938,603.36,601.45,0.30507205]
[1745538039665,1.26885938,603.36,601.44,0.30507205]
[1745538039966,1.26885938,603.36,601.45,0.30507205]
[1745538040161,0.28899334,603.35,601.4,0.30507205]
[1745538040363,0.28899334,603.35,601.41,0.30507205]
[1745538040560,0.28899334,603.35,601.4,0.30507205]
[1745538041366,0.28899334,603.35,601.39,1.34950606]
[1745538041560,0.28899334,603.35,601.4,0.30507221]
[1745538042065,1.26885938,603.37,601.4,0.30507221]
[1745538043167,0.28899214,603.36,601.4,0.30507221]
[1745538043467,0.28899214,603.36,601.4,1.88007221]
[1745538043665,0.28899214,603.36,601.41,0.30507221]
[1745538044467,0.28899214,603.36,601.4,1.575]
[1745538044670,0.28899214,603.36,601.41,0.30507393]
[1745538044968,1.26885938,603.38,601.41,0.30507393]
[1745538046166,1.55784912,603.37,601.41,0.30507393]
[1745538047972,1.26885938,603.37,601.41,0.30507393]
[1745538049172,0.28899094,603.36,601.41,0.30507393]
[1745538049469,1.26885938,603.29,601.41,1.36558665]
[1745538049774,1.26885938,603.29,601.42,0.30507393]
[1745538050874,1.26885938,603.29,601.41,1.06051272]
[1745538051068,1.26885938,603.29,601.42,0.30507063]
[1745538051272,0.28899934,603.28,601.42,0.30507063]
[1745538051875,0.28899934,603.28,601.42,1.36558335]
[1745538052174,0.28899934,603.28,601.43,0.30507063]
[1745538053977,1.26885938,603.29,601.43,0.30507063]
[1745538054578,0.61175184,609.5,601.43,1.36558335]
[1745538054579,1.26885938,603.26,601.43,1.36558335]
[1745538054777,1.26885938,603.26,601.44,0.30507063]
[1745538055177,0.28900054,603.25,601.44,0.30507063]
[1745538056273,1.26885938,603.24,601.44,0.30507063]
[1745538056471,1.26885938,603.24,601.46,1.06051272]
[1745538056675,1.26885938,603.24,601.47,0.30507063]
[1745538058281,0.28899934,603.23,601.47,0.30507063]
[1745538058776,0.28899934,603.23,601.46,1.06051272]
[1745538059577,1.26885938,603.07,601.56,1.06051272]
[1745538061181,1.55786712,603.07,601.56,1.06051272]
[1745538061976,1.55786712,603.07,601.45,1.005]
[1745538061977,0.28900774,603.07,601.45,1.005]
[1745538062984,1.26885938,603.54,601.45,1.005]
[1745538063684,1.26885938,603.54,601.46,1.301]
[1745538064183,0.28896334,603.53,601.46,1.301]
[1745538065984,1.26885938,603.64,601.46,1.301]
[1745538067283,0.28896334,603.63,601.46,1.301]
[1745538068984,1.26885938,603.64,601.46,1.301]
[1745538069884,0.28896334,603.63,601.46,1.301]
[1745538070485,1.26885938,603.59,601.46,1.301]
[1745538071182,1.26885938,603.59,601.47,0.3050994]
[1745538072180,0.28896934,603.58,601.47,0.3050994]
[1745538072685,0.28896934,603.58,601.48,1.457]
[1745538072885,0.28896934,603.58,601.49,0.30509727]
[1745538073286,1.26885938,603.3,601.49,0.30509727]
[1745538073686,1.26885938,603.3,601.48,1.457]
[1745538076189,0.28899214,603.29,601.48,1.457]
[1745538076993,0.28899214,603.29,601.49,0.30505622]
[1745538077591,0.28899214,603.29,601.5,0.30505132]
[1745538077884,0.28899214,603.29,601.49,0.30505132]
[1745538078085,1.26885938,603.71,601.5,0.30505132]
[1745538078289,1.26885938,603.71,601.49,0.30505132]
[1745538078986,1.26885938,603.71,601.5,1.143]
[1745538079190,0.28892376,603.7,601.51,0.30505132]
[1745538079691,1.26885938,603.17,601.56,1.06051272]
[1745538079884,1.26885938,603.17,601.57,0.30505132]
[1745538080689,1.26885938,603.17,601.56,1.06051272]
[1745538080890,1.26885938,603.17,601.57,0.30504071]
[1745538082286,0.28897894,603.16,601.57,0.30504071]
[1745538083289,0.28897894,603.16,601.56,0.936]
[1745538083689,0.28897894,603.16,601.57,0.30503475]
[1745538083890,0.28897894,603.16,601.56,0.936]
[1745538084186,1.26885938,603.24,601.57,0.30502894]
[1745538085187,0.28897054,603.23,601.57,0.30502894]
[1745538085785,0.28897054,603.23,601.56,0.936]
[1745538086988,1.26885938,603.68,601.56,0.936]
[1745538088194,0.28891776,603.67,601.56,0.936]
[1745538088396,0.28891776,603.67,601.57,0.30502653]
[1745538089996,0.28891776,603.67,601.56,0.936]
[1745538092999,1.26885938,603.87,601.56,0.936]
[1745538094198,0.28889498,603.86,601.56,0.936]
[1745538094900,1.55775436,603.86,601.56,0.936]
[1745538095601,1.55775436,603.86,601.57,0.30502071]
[1745538096100,1.26885938,603.86,601.5,1.143]
[1745538096401,1.26885938,603.86,601.51,0.30501887]
[1745538097004,1.26885938,603.81,601.51,0.30501887]
[1745538098703,1.26885938,603.81,601.52,1.29]
[1745538098898,1.26885938,603.81,601.53,0.30501887]
[1745538100204,0.28889498,603.8,601.53,0.30501887]
[1745538101299,0.28889498,603.8,601.52,1.29]
[1745538101504,0.28889498,603.8,601.53,0.30500244]
[1745538102004,1.26885938,603.89,601.53,0.30500244]
[1745538102204,0.28888538,603.79,601.53,0.30500244]
[1745538102504,1.26885938,603.89,601.53,0.30500244]
[1745538103207,0.28888538,603.88,601.53,0.30500244]
[1745538103604,0.28888538,603.88,601.53,1.76500244]
[1745538103807,0.28888538,603.88,601.54,0.30500244]
[1745538105008,1.26885938,603.98,601.54,0.30500244]
[1745538105706,1.26885938,603.98,601.53,1.46]
[1745538106108,1.26885938,603.96,601.53,1.46]
[1745538106304,1.26885938,603.96,601.54,0.30500048]
[1745538107707,1.26885938,603.96,601.53,1.46]
[1745538107910,1.26885938,603.96,601.54,0.30500426]
[1745538109109,1.26885938,603.86,601.54,0.30500426]
[1745538109407,1.26885938,603.86,601.55,0.30500291]
[1745538109608,1.26885938,603.86,601.53,1.46]
[1745538109908,1.26885938,603.86,601.54,0.30500291]
[1745538110404,1.26885938,603.86,601.54,1.74300291]
[1745538110609,1.26885938,603.86,601.55,0.30500291]
[1745538112408,1.26885938,603.89,601.55,0.30500291]
[1745538112609,1.26885938,603.89,601.56,0.30500454]
[1745538112808,1.26885938,603.89,601.55,0.30500454]
[1745538114611,1.26885938,603.65,601.55,0.30500454]
[1745538115210,0.28889977,603.64,601.55,0.30500454]
[1745538115810,0.28889977,603.64,601.56,0.30498823]
[1745538116009,0.28889977,603.64,601.55,0.30498823]
[1745538116910,0.28889977,603.64,601.55,1.35498823]
[1745538117111,1.26885938,603.67,601.56,0.30498823]
[1745538118211,0.28889618,603.66,601.56,0.30498823]
[1745538119206,1.26885938,603.64,601.56,0.30498823]
[1745538120413,1.26885938,603.64,601.55,1.05]
[1745538120608,1.26885938,603.64,601.56,0.30507583]
[1745538122109,1.26885938,603.03,601.56,0.30507583]
[1745538124615,1.26885938,603.03,601.55,2.11051272]
[1745538124812,0.28900654,603.1,601.56,0.30507906]
[1745538126015,1.26885938,603.27,601.56,0.30507906]
[1745538126209,1.26885938,603.27,601.55,1.05]
[1745538126511,1.26885938,603.27,601.56,0.30507906]
[1745538127215,0.28899214,603.26,601.56,0.30507906]
[1745538127616,1.26885938,603.3,601.56,0.30507906]
[1745538128412,0.28898854,603.29,601.56,0.30507906]
[1745538129017,1.26885938,603.3,601.56,0.30507906]
[1745538129413,1.26885938,603.3,601.55,1.05]
[1745538129617,1.26885938,603.3,601.56,0.30508529]
[1745538130219,0.28898854,603.29,601.56,0.30508529]
[1745538131122,0.28898854,603.29,601.55,1.05]
[1745538131921,1.26885938,603.36,601.55,1.05]
[1745538133223,0.28898134,603.35,601.55,1.05]
[1745538133622,0.28898134,603.35,601.55,2.468]
[1745538134318,0.28898134,603.35,601.56,0.30509616]
[1745538134623,0.28898134,603.35,601.55,2.468]
[1745538134824,0.28898134,603.35,601.56,1.433]
[1745538138024,1.26885938,603.42,601.56,1.433]
[1745538138325,1.26885938,603.45,601.56,1.433]
[1745538138522,1.26885938,603.45,601.56,2.602]
[1745538138825,1.26885938,603.45,601.56,3.576]
[1745538139223,0.28898374,603.44,601.56,3.576]
[1745538140624,0.28898374,603.44,601.57,0.30509868]
[1745538140825,1.55784312,603.44,601.57,0.30509868]
[1745538141027,1.26885938,603.44,601.57,0.30509868]
[1745538142221,0.28898494,603.43,601.57,0.30509868]
[1745538144027,1.26885938,603.31,601.57,0.30509868]
[1745538145221,0.28900054,603.3,601.57,0.30509868]
[1745538145426,0.28900054,603.3,601.56,3.576]
[1745538145625,0.28900054,603.3,601.57,0.30509771]
[1745538147026,1.26885938,603.31,601.58,0.30509409]
[1745538147221,1.26885938,603.31,601.59,0.30509409]
[1745538147426,1.26885938,603.31,601.56,3.576]
[1745538147427,1.26885938,603.26,601.6,0.30509409]
[1745538147626,1.26885938,603.26,601.57,0.30509409]
[1745538147921,1.26885938,603.26,601.58,0.30509409]
[1745538148125,1.26885938,603.26,601.57,0.30509409]
[1745538148329,0.28900654,603.25,601.57,0.30509409]
[1745538148526,0.28900654,603.25,601.56,3.576]
[1745538148732,0.28900654,603.25,601.57,0.30509646]
[1745538149131,1.26885938,603.24,601.57,0.30509646]
[1745538150031,1.26885938,603.24,601.56,3.576]
[1745538150231,1.26885938,603.24,601.57,0.30509479]
[1745538152535,0.28900654,603.25,601.57,0.30509479]
[1745538152536,1.26885938,603.15,601.57,0.30509479]
[1745538154337,0.28900534,603.14,601.57,0.30509479]
[1745538154537,1.26885938,603.13,601.57,0.30509479]
[1745538154738,1.26885938,603.13,601.56,3.576]
[1745538154940,1.26885938,603.13,601.57,0.30509534]
[1745538156338,1.26885938,603.13,601.56,2.143]
[1745538156639,1.26885938,603.1,601.57,0.30509507]
[1745538158933,1.26885938,603.13,601.57,0.30509507]
[1745538159138,1.26885938,603.13,601.58,1.291]
[1745538159334,1.26885938,603.13,601.59,0.30509507]
[1745538159537,1.26885938,603.13,601.59,1.32709507]
[1745538159733,1.26885938,603.13,601.6,0.30509507]
[1745538160239,0.28900414,603.12,601.6,0.30509507]
[1745538160939,0.28900414,603.12,601.59,1.022]
[1745538162141,1.26885938,603.13,601.59,1.022]
[1745538163243,0.28900414,603.12,601.59,1.022]
[1745538165046,1.26885938,603.43,601.59,1.022]
[1745538166243,0.28896814,603.42,601.59,1.022]
[1745538166948,1.55782752,603.42,601.59,1.022]
[1745538168051,1.26885938,603.42,601.59,1.022]
[1745538169246,0.28896934,603.41,601.59,1.022]
[1745538171051,1.26885938,603.44,601.59,1.022]
[1745538172252,0.28896694,603.43,601.6,1.496]
[1745538172949,1.26885938,603.2,601.6,1.496]
[1745538175756,1.26885938,603.22,601.61,1.203]
[1745538178254,0.28899094,603.21,601.61,1.203]
[1745538178856,1.26885938,603.14,601.61,1.203]
[1745538181259,0.28900054,603.13,601.61,1.203]
[1745538183062,1.26885938,603.25,601.61,1.203]
[1745538183762,1.26885938,603.22,601.61,1.203]
[1745538184262,0.28900294,603.21,601.61,1.203]
[1745538186165,1.26885938,603.22,601.61,1.203]
[1745538186362,2.16082721,603.89,601.61,1.203]
[1745538186363,1.26885938,603.23,601.61,1.203]
[1745538187270,0.28900174,603.22,601.61,1.203]
[1745538189071,1.26885938,603.25,601.61,1.203]
[1745538189272,1.26885938,603.25,601.62,0.3051045]
[1745538189473,1.26885938,603.25,601.61,1.203]
[1745538190266,0.28900654,603.24,601.61,1.203]
[1745538190673,1.26885938,603.03,601.61,1.203]
[1745538192771,1.26885938,603.02,601.61,1.203]
[1745538193273,0.28903414,603.01,601.61,1.203]
[1745538194376,0.28903414,603.01,601.62,0.30511277]
[1745538194975,1.26885938,603.02,601.62,0.30511277]
[1745538195477,1.26885938,603.02,601.61,1.203]
[1745538195775,1.26885938,603.01,601.6,1.496]
[1745538196277,0.28903654,603.0,601.6,1.496]
[1745538198173,1.26885938,603.17,601.6,1.496]
[1745538198373,1.26885938,603.17,601.61,0.991]
[1745538199177,0.28901254,603.16,601.61,0.991]
[1745538200981,1.26885938,603.21,601.61,0.991]
[1745538201282,0.28900414,603.15,601.61,0.991]
[1745538201675,0.28900414,603.15,601.62,1.156]
[1745538203883,0.28900414,603.15,601.63,1.333]
[1745538204082,1.26885938,603.27,601.63,1.333]
[1745538205284,0.28899454,603.26,601.63,1.333]
[1745538206388,1.55785392,603.26,601.63,1.333]
[1745538207086,1.26885938,603.26,601.63,1.333]
[1745538208187,1.26885938,603.26,601.64,1.164]
[1745538208483,0.28899574,603.25,601.64,1.164]
[1745538209088,1.26885938,603.2,601.64,1.164]
[1745538210282,0.28900174,603.19,601.64,1.164]
[1745538211691,1.26885938,603.16,601.64,1.164]
[1745538213689,0.28898974,603.15,601.64,1.164]
[1745538214296,1.26885938,603.1,601.64,1.164]
[1745538216290,0.28899694,603.09,601.64,1.164]
[1745538219198,1.26885938,603.12,601.64,1.164]
[1745538219397,0.28899454,603.08,601.64,1.164]
[1745538222099,1.26885938,603.31,601.65,1.436]
[1745538223301,0.28897054,603.3,601.65,1.436]
[1745538225006,1.26885938,603.33,601.65,1.436]
[1745538226303,0.28896814,603.32,601.65,1.436]
[1745538228110,1.26885938,603.33,601.65,1.436]
[1745538229315,0.28896814,603.32,601.65,1.436]
[1745538230213,0.28896814,603.32,601.65,2.789]
[1745538231213,1.26885938,603.4,601.65,2.789]
[1745538232308,0.28895974,603.39,601.65,2.789]
[1745538234008,1.26885938,603.4,601.65,2.789]
[1745538235310,0.28895974,603.39,601.65,2.789]
[1745538235610,0.28895974,603.39,601.66,0.30508525]
[1745538236921,0.28895974,603.39,601.65,2.789]
[1745538237217,1.26885938,603.4,601.66,0.30509832]
[1745538237613,1.26885938,603.4,601.66,1.47009832]
[1745538237811,1.26885938,603.4,601.66,1.165]
[1745538238215,0.28895855,603.39,601.66,1.165]
[1745538238717,0.28895855,603.39,601.67,0.30509366]
[1745538239217,0.28895855,603.39,601.66,1.165]
[1745538239712,1.26885938,603.03,601.66,1.165]
[1745538242312,1.26885938,603.03,601.66,2.623]
[1745538242517,1.26885938,603.01,601.66,2.623]
[1745538243617,1.26885938,603.01,601.67,0.30509524]